fUSD/lending_fUSD_20240817
["ID","MTS","AMOUNT","RATE_DAILY","PERIOD"]
[335170554,1723927832385,-990.05544266,0.00010799,2]
[335170555,1723927832396,-238.77528474,0.00010799,2]
[335170556,1723927832405,-3237.35333387,0.00010799,2]
[335170560,1723927838086,-500.54133244,0.0001,2]
[335170561,1723927838141,-255.3477856,0.0001,2]
[335170562,1723927838248,-8165.6999999,0.0001,2]
[335170563,1723927838259,-835.77,0.0001,2]
[335170564,1723927838270,-1343.08378447,0.0001,2]
[335170565,1723927838303,-1282.23745537,0.0001,2]
[335170568,1723927840480,-15762.9786855,0.0001,2]
[335170569,1723927840489,-760.52558661,0.00010799,2]
[335170570,1723927840499,-155.0,0.00010862,2]
[335170571,1723927840510,-155.0,0.00010862,2]
[335170572,1723927840521,-172.97978311,0.00010888,2]
[335170573,1723927840531,-2096.20566282,0.0001089,2]
[335170574,1723927840540,-714.42057,0.0001089,2]
[335170575,1723927840552,-419.26533857,0.0001089,2]
[335170576,1723927840561,-500.0,0.00010898,2]
[335170577,1723927840570,-155.0,0.00010899,2]
[335170578,1723927840579,-630.38071899,0.00010899,2]
[335170580,1723927840588,-296.1084,0.000109,2]
[335170581,1723927840597,-171.8,0.000109,2]
[335170583,1723927840607,-305.97729216,0.00010908,2]
[335170584,1723927840615,-294.14761893,0.00010911,2]
[335170585,1723927840626,-1500.0,0.00010954,2]
[335170586,1723927840636,-150.0,0.00010957,2]
[335170588,1723927840646,-664.275,0.00010958,2]
[335170590,1723927840655,-500.0,0.00010958,2]
[335170592,1723927840664,-250.0,0.00010959,2]
[335170594,1723927840674,-150.0,0.00010959,2]
[335170596,1723927840683,-2000.0,0.00010959,2]
[335170598,1723927840692,-267.36,0.00010959,2]
[335170600,1723927840702,-200.0,0.00010973,2]
[335170602,1723927840711,-7287.38353713,0.00010986,2]
[335170604,1723927840720,-500.0,0.00010986,2]
[335170606,1723927840730,-8500.0,0.00010999,2]
[335170608,1723927840739,-8101.37796172,0.00010999,2]
[335170610,1723927840748,-1914.9788872,0.00010999,2]
[335170611,1723927840757,-4273.7598058,0.00010999,2]
[335170614,1723927840767,-32579.48339,0.00010999,2]
[335170615,1723927840777,-420.0,0.00010999,2]
[335170617,1723927840786,-500.0,0.00010999,2]
[335170619,1723927840795,-500.0,0.00010999,2]
[335170621,1723927840805,-500.0,0.00010999,2]
[335170623,1723927840814,-500.0,0.00010999,2]
[335170625,1723927840823,-500.0,0.00010999,2]
[335170627,1723927840833,-500.0,0.00010999,2]
[335170629,1723927840843,-500.0,0.00010999,2]
[335170631,1723927840852,-500.0,0.00010999,2]
[335170633,1723927840861,-500.0,0.00010999,2]
[335170635,1723927840871,-500.0,0.00010999,2]
[335170637,1723927840880,-500.0,0.00010999,2]
[335170639,1723927840890,-500.0,0.00010999,2]
[335170641,1723927840899,-500.0,0.00010999,2]
[335170643,1723927840908,-500.0,0.00010999,2]
[335170645,1723927840917,-500.0,0.00010999,2]
[335170647,1723927840926,-500.0,0.00010999,2]
[335170649,1723927840935,-500.0,0.00010999,2]
[335170651,1723927840944,-500.0,0.00010999,2]
[335170653,1723927840953,-500.0,0.00010999,2]
[335170655,1723927840963,-500.0,0.00010999,2]
[335170657,1723927840972,-500.0,0.00010999,2]
[335170659,1723927840982,-331.15637795,0.00010999,2]
[335170661,1723927840991,-500.0,0.00010999,2]
[335170663,1723927841000,-500.0,0.00010999,2]
[335170665,1723927841009,-500.0,0.00010999,2]
[335170667,1723927841018,-500.0,0.00010999,2]
[335170669,1723927841027,-500.0,0.00010999,2]
[335170671,1723927841041,-500.0,0.00010999,2]
[335170673,1723927841050,-500.0,0.00010999,2]
[335170675,1723927841059,-500.0,0.00010999,2]
[335170677,1723927841069,-977.0,0.00011,2]
[335170679,1723927841079,-476018.99966194,0.00011,2]
[335170681,1723927841088,-4154920.75029791,0.00011,2]
[335170719,1723927846465,-200.0,0.00010973,2]
[335170720,1723927846475,-877.0,0.00011,2]
[335170721,1723927846486,-18900.92514882,0.00011,2]
[335170726,1723927933922,587.06,8.666e-05,2]
[335170732,1723928293138,786.8,9.947e-05,2]
[335170734,1723928410945,593.17,8.219e-05,2]
[335170735,1723928453053,2671.68,9.904e-05,2]
[335170736,1723928465697,250.0,9.918e-05,2]
[335170737,1723928505909,1238.9,9.952e-05,2]
[335170738,1723928522019,259.22712379,9.933e-05,2]
[335170739,1723928652944,238.02,9.912e-05,2]
[335170740,1723928672433,23900.0,9.946e-05,2]
[335170744,1723928748908,155.0,9.943e-05,2]
[335170745,1723928759703,418.95,9.971e-05,2]
[335170746,1723928802480,404.95738227,5.782e-05,7]
[335170747,1723928803732,89612.0848549,5.782e-05,7]
[335170748,1723928805897,590.08,9.967e-05,2]
[335170760,1723928882218,693.68338973,9.967e-05,2]
[335170761,1723928886351,20392.66258053,9.967e-05,2]
[335170762,1723928891223,3070.88521436,9.967e-05,2]
[335170770,1723928897182,1268.93157185,9.967e-05,2]
[335170773,1723928926086,499.97286808,9.967e-05,2]
[335170779,1723929016616,599.16,8.219e-05,2]
[335170780,1723929017332,20392.66258053,9.967e-05,2]
[335170795,1723929032312,-1154.86373683,9.988e-05,2]
[335170796,1723929032373,-122.09666783,9.988e-05,2]
[335170797,1723929032383,-340.95333217,0.00010026,2]
[335170798,1723929032395,-281.06765099,0.00010026,2]
[335170799,1723929032405,-176.73,0.00010033,2]
[335170800,1723929032415,-409.92,0.00010046,2]
[335170801,1723929032424,-6742.0,0.0001014,2]
[335170802,1723929032434,-599.16,0.00010475,2]
[335170803,1723929032444,-300.0,0.00010552,2]
[335170804,1723929032455,-2351.436,0.00010553,2]
[335170805,1723929032464,-175.72,0.00010653,2]
[335170806,1723929032474,-150.0,0.00010799,2]
[335170807,1723929032484,-524.07661507,0.000108,2]
[335170808,1723929032493,-17950.45,0.000108,2]
[335170809,1723929032503,-19059.75,0.000108,2]
[335170810,1723929032512,-1009.58,0.000108,2]
[335170811,1723929032522,-891.575,0.00010855,2]
[335170812,1723929032531,-190.62353583,0.0001089,2]
[335170813,1723929032541,-155.0,0.0001089,2]
[335170814,1723929032551,-1000.0,0.000109,2]
[335170815,1723929032560,-2306.6728,0.000109,2]
[335170816,1723929032570,-3000.0,0.000109,2]
[335170817,1723929032580,-7539.40123542,0.000109,2]
[335170818,1723929032589,-343.28830761,0.000109,2]
[335170819,1723929032599,-304.18,0.000109,2]
[335170820,1723929032608,-800.0,0.00010915,2]
[335170821,1723929032618,-155.0,0.00010949,2]
[335170822,1723929032629,-797.320774,0.00010949,2]
[335170823,1723929032638,-150.0,0.00010958,2]
[335170824,1723929032648,-981.87,0.00010959,14]
[335170825,1723929032658,-250.0,0.00010959,2]
[335170826,1723929032668,-548.88,0.00010959,2]
[335170827,1723929032677,-200.0,0.00010973,2]
[335170828,1723929032686,-200.0,0.00010973,2]
[335170829,1723929032696,-303.98208233,0.00010979,2]
[335170830,1723929032705,-622.83252144,0.00010979,2]
[335170831,1723929032715,-2953.9933035,0.00010994,2]
[335170832,1723929032724,-1654.0297349,0.00010994,2]
[335170833,1723929032734,-169.52892449,0.00010997,2]
[335170834,1723929032744,-4552.54110251,0.00010999,2]
[335170835,1723929032754,-2979.38716765,0.00010999,2]
[335170836,1723929032763,-1000.0,0.00010999,2]
[335170837,1723929032773,-1000.0,0.00010999,3]
[335170838,1723929032783,-1000.0,0.00010999,4]
[335170839,1723929032792,-8500.0,0.00010999,2]
[335170840,1723929032802,-28139.9626048,0.00010999,2]
[335170841,1723929032812,-500.0,0.00010999,2]
[335170842,1723929032821,-500.0,0.00010999,2]
[335170843,1723929032831,-500.0,0.00010999,2]
[335170844,1723929032840,-500.0,0.00010999,2]
[335170845,1723929032850,-500.0,0.00010999,2]
[335170846,1723929032864,-500.0,0.00010999,2]
[335170847,1723929032876,-427.79808666,0.00010999,2]
[335170848,1723929032885,-500.0,0.00010999,2]
[335170849,1723929032895,-500.0,0.00010999,2]
[335170850,1723929032905,-500.0,0.00010999,2]
[335170851,1723929032915,-500.0,0.00010999,2]
[335170852,1723929032924,-500.0,0.00010999,2]
[335170853,1723929032934,-500.0,0.00010999,2]
[335170854,1723929032944,-500.0,0.00010999,2]
[335170855,1723929032953,-500.0,0.00010999,2]
[335170856,1723929032963,-500.0,0.00010999,2]
[335170857,1723929032972,-500.0,0.00010999,2]
[335170858,1723929032982,-500.0,0.00010999,2]
[335170859,1723929032992,-1039.0,0.00011,2]
[335170860,1723929033001,-367814.07396928,0.00011,2]
[335170861,1723929033011,-497820.69922495,0.00011,2]
[335170862,1723929033024,-200037.03382888,0.00011,2]
[335170863,1723929033039,-1618.07633989,0.00011,2]
[335170864,1723929033050,-1138.55742,0.00011,2]
[335170865,1723929033062,-4259.61070056,0.00011,2]
[335170875,1723929038695,-200.0,0.00010973,2]
[335170876,1723929038704,-229.27581004,0.00011,2]
[335170877,1723929038720,-2227.42494,0.00011,2]
[335170878,1723929038742,-783.45476951,0.00011,2]
[335170880,1723929038754,-144.54523049,0.00011,2]
[335170882,1723929038763,-637.88348118,0.00011,2]
[335170884,1723929038774,-6035.8958172,0.00011,2]
[335170886,1723929038785,-11330.14277034,0.00011,2]
[335170889,1723929038800,-474679.53857933,0.00011,2]
[335170891,1723929038814,-450.69127927,0.00011,2]
[335170893,1723929038825,-1203.88782761,0.00011,2]
[335170895,1723929038836,-3444.51359154,0.00011,2]
[335171058,1723929040590,-347.50656736,0.00011,2]
[335171076,1723929040754,-1592.58488539,0.00011,2]
[335171083,1723929040814,-8787.05802871,0.00011,2]
[335171187,1723929044413,-1775.0,0.00011,2]
[335171188,1723929044424,-1449.9999998,0.00011,2]
[335171216,1723929046424,-155.0,0.00010899,2]
[335171217,1723929046433,-200.0,0.00010973,2]
[335171218,1723929046443,-68716.66938299,0.00011,2]
[335171219,1723929046535,-576018.92847207,0.00011,2]
[335171220,1723929046595,-5008.17589993,0.00011,2]
[335171346,1723929050219,16236.75715637,9.967e-05,2]
[335171347,1723929051235,3070.88521436,9.967e-05,2]
[335171348,1723929112342,20392.66258053,9.967e-05,2]
[335171349,1723929172046,1269.59062795,9.967e-05,2]
[335171350,1723929181236,3072.50118676,9.967e-05,2]
[335171351,1723929182233,16239.2033906,9.967e-05,2]
[335171352,1723929201350,20396.1727788,9.967e-05,2]
[335171355,1723929282251,1269.59062795,9.967e-05,2]
[335171356,1723929303248,3072.50118676,9.967e-05,2]
[335171357,1723929314689,295.35,9.982e-05,2]
[335171358,1723929360548,23900.0,9.981e-05,2]
[335171359,1723929368314,527.93,9.98e-05,2]
[335171362,1723929384046,1269.59062795,9.982e-05,2]
[335171363,1723929395366,20389.15238226,9.982e-05,2]
[335171364,1723929396362,16242.01143929,9.982e-05,2]
[335171366,1723929410434,250.0,9.979e-05,2]
[335171371,1723929474244,16229.05663922,9.979e-05,2]
[335171373,1723929479108,1266.95440355,9.982e-05,2]
[335171375,1723929500266,3067.65326956,9.979e-05,2]
[335171377,1723929523336,573.37,8.219e-05,2]
[335171393,1723929696666,181.79,7.956e-05,2]
[335171395,1723929708226,542.36,9.939e-05,2]
[335171396,1723929739761,6849.30275582,9.962e-05,2]
[335171397,1723929810777,4907.66,9.923e-05,2]
[335171398,1723929828392,295.35,9.916e-05,2]
[335171402,1723929977426,1000.0,9.904e-05,2]
[335171403,1723930012291,579.07,8.219e-05,2]
[335171404,1723930014424,229.04,8.219e-05,2]
[335171533,1723930159622,181.79,7.87e-05,2]
[335171541,1723930196483,415.01059966,9.943e-05,2]
[335171549,1723930231507,-175.72,9.987e-05,2]
[335171551,1723930231517,-424.28,9.988e-05,2]
[335171555,1723930231529,-571.61940899,9.988e-05,2]
[335171558,1723930231541,-358.66688101,9.988e-05,2]
[335171560,1723930231550,-158.52056904,9.988e-05,5]
[335171562,1723930231559,-633.0,9.999e-05,2]
[335171564,1723930231570,-916.53273452,9.999e-05,2]
[335171566,1723930231585,-535.8515108,9.999e-05,2]
[335171568,1723930231596,-307.8334,9.999e-05,2]
[335171570,1723930231608,-1273.3125399,9.999e-05,2]
[335171572,1723930231617,-550.0,0.0001,2]
[335171574,1723930231626,-170.82,0.00010007,2]
[335171576,1723930231635,-155.0,0.00010097,2]
[335171578,1723930231645,-155.0,0.00010097,2]
[335171580,1723930231654,-579.07,0.00010471,2]
[335171582,1723930231664,-300.0,0.00010479,2]
[335171584,1723930231673,-12947.53434518,0.0001048,2]
[335171586,1723930231682,-155.0,0.00010505,2]
[335171588,1723930231692,-962.80465455,0.00010713,2]
[335171590,1723930231701,-1500.0,0.00010764,2]
[335171592,1723930231710,-1500.0,0.00010775,2]
[335171594,1723930231720,-848.39,0.00010799,2]
[335171596,1723930231731,-500.0,0.00010799,2]
[335171597,1723930231741,-418.69039571,0.00010799,2]
[335171598,1723930231750,-500.0,0.00010799,2]
[335171599,1723930231759,-150.0,0.00010799,2]
[335171600,1723930231768,-1644.35,0.00010799,2]
[335171601,1723930231777,-246500.93900815,0.000108,2]
[335171602,1723930231788,-1166.56665085,0.000108,2]
[335171604,1723930231808,-5300.25723391,0.000108,2]
[335171605,1723930231819,-2584.73800879,0.000108,2]
[335171606,1723930231831,-5371.78642001,0.000108,2]
[335171608,1723930231842,-669.94125223,0.000108,2]
[335171610,1723930231853,-1000.0,0.000108,2]
[335171613,1723930231873,-2743.0,0.000108,2]
[335171616,1723930231884,-959.0,0.000108,2]
[335171618,1723930231895,-2790.63283039,0.000108,2]
[335171619,1723930231906,-2009.39774727,0.000108,2]
[335171624,1723930237536,-155.0,0.00010471,2]
[335171625,1723930237545,-813.719089,0.000108,2]
[335171626,1723930237556,-60814.00000001,0.000108,2]
[335171627,1723930237568,-468.50164004,0.000108,2]
[335171628,1723930237600,-861.93887997,0.000108,2]
[335171629,1723930237611,-311.21120683,0.000108,2]
[335171630,1723930237622,-616.99680524,0.000108,2]
[335171631,1723930237661,-319.8,0.000108,2]
[335171632,1723930237725,-1573.08521498,0.000108,2]
[335171633,1723930237736,-37944.86212497,0.000108,2]
[335171634,1723930237745,-1361.24369803,0.00010807,2]
[335171635,1723930237754,-700.0,0.0001089,2]
[335171636,1723930237762,-311.70176025,0.00010899,2]
[335171637,1723930237771,-311.70176025,0.00010899,2]
[335171638,1723930237780,-311.70176025,0.00010899,2]
[335171639,1723930237789,-311.70176025,0.00010899,2]
[335171640,1723930237798,-311.70176025,0.00010899,2]
[335171641,1723930237807,-311.70176025,0.00010899,2]
[335171642,1723930237816,-311.70176025,0.00010899,2]
[335171643,1723930237825,-311.70176025,0.00010899,2]
[335171644,1723930237834,-311.70176025,0.00010899,2]
[335171645,1723930237843,-15285.27595116,0.000109,2]
[335171646,1723930237853,-2988.33714884,0.000109,2]
[335171648,1723930237862,-303.8659,0.000109,2]
[335171650,1723930237872,-3000.0,0.000109,2]
[335171652,1723930237882,-2324.21109593,0.000109,2]
[335171654,1723930237892,-501.43999148,0.000109,2]
[335171656,1723930237902,-311.70176025,0.000109,2]
[335171658,1723930237912,-258.55,0.000109,2]
[335171659,1723930237922,-201.78608961,0.000109,2]
[335171661,1723930237931,-600.0,0.00010918,2]
[335171663,1723930237942,-1500.0,0.00010929,2]
[335171665,1723930237953,-500.0,0.00010933,2]
[335171667,1723930237963,-700.0,0.00010939,2]
[335171669,1723930237972,-595.35048,0.0001094,2]
[335171671,1723930237981,-500.0,0.00010949,2]
[335171673,1723930237993,-1500.0,0.00010952,2]
[335171675,1723930238003,-500.0,0.00010958,2]
[335171677,1723930238013,-500.0,0.00010958,2]
[335171679,1723930238023,-500.0,0.00010958,2]
[335171681,1723930238035,-500.0,0.00010958,2]
[335171684,1723930238046,-500.0,0.00010958,2]
[335171686,1723930238056,-500.0,0.00010958,2]
[335171688,1723930238066,-500.0,0.00010958,2]
[335171690,1723930238075,-500.0,0.00010958,2]
[335171692,1723930238085,-305.38627824,0.00010958,2]
[335171694,1723930238093,-500.0,0.00010958,2]
[335171696,1723930238103,-500.0,0.00010958,2]
[335171698,1723930238112,-500.0,0.00010958,2]
[335171700,1723930238122,-500.0,0.00010958,2]
[335171702,1723930238133,-500.0,0.00010958,2]
[335171704,1723930238142,-500.0,0.00010958,2]
[335171706,1723930238151,-500.0,0.00010958,2]
[335171708,1723930238159,-500.0,0.00010958,2]
[335171710,1723930238168,-500.0,0.00010958,2]
[335171711,1723930238178,-500.0,0.00010958,2]
[335171713,1723930238187,-500.0,0.00010958,2]
[335171714,1723930238196,-500.0,0.00010958,2]
[335171715,1723930238205,-500.0,0.00010958,2]
[335171716,1723930238215,-500.0,0.00010958,2]
[335171717,1723930238224,-500.0,0.00010958,2]
[335171718,1723930238233,-500.0,0.00010958,2]
[335171719,1723930238242,-500.0,0.00010958,2]
[335171720,1723930238251,-150.0,0.00010959,2]
[335171721,1723930238260,-250.0,0.00010959,2]
[335171722,1723930238268,-464.05,0.00010959,2]
[335171724,1723930238277,-356.68,0.00010959,2]
[335171725,1723930238286,-231.27958502,0.00010973,2]
[335171727,1723930238295,-200.0,0.00010973,2]
[335171729,1723930238304,-848.39,0.00010993,2]
[335171731,1723930238313,-500.0,0.00010993,2]
[335171733,1723930238322,-500.0,0.00010993,2]
[335171735,1723930238331,-1644.35,0.00010993,2]
[335171737,1723930238340,-997.6393489,0.00010994,2]
[335171739,1723930238349,-22951.6349769,0.00010994,2]
[335171741,1723930238358,-1403.7204548,0.00010994,2]
[335171742,1723930238367,-10143.95469867,0.00010997,2]
[335171744,1723930238377,-3301.00968249,0.00010999,2]
[335171745,1723930238388,-150.01,0.00010999,2]
[335171747,1723930238397,-8500.0,0.00010999,2]
[335171749,1723930238406,-848.39,0.00010999,2]
[335171751,1723930238415,-848.39,0.00010999,2]
[335171753,1723930238424,-848.39,0.00010999,2]
[335171755,1723930238434,-848.39,0.00010999,2]
[335171757,1723930238446,-848.39,0.00010999,2]
[335171759,1723930238457,-848.39,0.00010999,2]
[335171760,1723930238466,-848.39,0.00010999,2]
[335171762,1723930238475,-848.39,0.00010999,2]
[335171764,1723930238484,-848.39,0.00010999,2]
[335171766,1723930238497,-848.39,0.00010999,2]
[335171768,1723930238506,-848.39,0.00010999,2]
[335171770,1723930238515,-848.39,0.00010999,2]
[335171772,1723930238524,-848.39,0.00010999,2]
[335171774,1723930238533,-848.39,0.00010999,2]
[335171776,1723930238542,-848.39,0.00010999,2]
[335171778,1723930238551,-848.39,0.00010999,2]
[335171780,1723930238563,-500.0,0.00010999,2]
[335171782,1723930238572,-848.39,0.00010999,2]
[335171784,1723930238581,-500.0,0.00010999,2]
[335171786,1723930238591,-848.39,0.00010999,2]
[335171788,1723930238600,-500.0,0.00010999,2]
[335171790,1723930238609,-848.39,0.00010999,2]
[335171792,1723930238618,-848.39,0.00010999,2]
[335171794,1723930238627,-500.0,0.00010999,2]
[335171796,1723930238638,-848.39,0.00010999,2]
[335171798,1723930238648,-848.53741037,0.00010999,2]
[335171800,1723930238659,-500.0,0.00010999,2]
[335171802,1723930238669,-500.0,0.00010999,2]
[335171804,1723930238678,-500.0,0.00010999,2]
[335171806,1723930238689,-500.0,0.00010999,2]
[335171808,1723930238698,-500.0,0.00010999,2]
[335171810,1723930238708,-500.0,0.00010999,2]
[335171812,1723930238717,-500.0,0.00010999,2]
[335171814,1723930238728,-500.0,0.00010999,2]
[335171816,1723930238738,-500.0,0.00010999,2]
[335171818,1723930238748,-500.0,0.00010999,2]
[335171820,1723930238758,-445.08,0.00010999,2]
[335171822,1723930238767,-500.0,0.00010999,2]
[335171824,1723930238776,-500.0,0.00010999,2]
[335171826,1723930238786,-500.0,0.00010999,2]
[335171828,1723930238794,-500.0,0.00010999,2]
[335171830,1723930238803,-500.0,0.00010999,2]
[335171832,1723930238812,-500.0,0.00010999,2]
[335171833,1723930238821,-500.0,0.00010999,2]
[335171835,1723930238830,-500.0,0.00010999,2]
[335171837,1723930238839,-500.0,0.00010999,2]
[335171839,1723930238848,-500.0,0.00010999,2]
[335171841,1723930238857,-500.0,0.00010999,2]
[335171843,1723930238867,-500.0,0.00010999,2]
[335171845,1723930238876,-500.0,0.00010999,2]
[335171847,1723930238886,-500.0,0.00010999,2]
[335171849,1723930238895,-500.0,0.00010999,2]
[335171851,1723930238904,-150.6,0.00010999,2]
[335171853,1723930238913,-1644.35,0.00010999,2]
[335171855,1723930238923,-1644.35,0.00010999,2]
[335171857,1723930238934,-1644.35,0.00010999,2]
[335171859,1723930238943,-1644.35,0.00010999,2]
[335171862,1723930238955,-1644.35,0.00010999,2]
[335171864,1723930238964,-1644.35,0.00010999,2]
[335171866,1723930238973,-1644.35,0.00010999,2]
[335171867,1723930238982,-1644.35,0.00010999,2]
[335171869,1723930238991,-1644.35,0.00010999,2]
[335171871,1723930239000,-1644.35,0.00010999,2]
[335171873,1723930239009,-1644.35,0.00010999,2]
[335171875,1723930239018,-1644.35,0.00010999,2]
[335171877,1723930239027,-1644.35,0.00010999,2]
[335171879,1723930239036,-1644.35,0.00010999,2]
[335171881,1723930239045,-1644.35,0.00010999,2]
[335171883,1723930239054,-1644.35,0.00010999,2]
[335171885,1723930239063,-1644.35,0.00010999,2]
[335171887,1723930239072,-1644.35,0.00010999,2]
[335171889,1723930239081,-1644.35,0.00010999,2]
[335171890,1723930239091,-1644.35,0.00010999,2]
[335171892,1723930239101,-1644.35,0.00010999,2]
[335171894,1723930239110,-1644.51406722,0.00010999,2]
[335171896,1723930239119,-964.0,0.00011,2]
[335171898,1723930239128,-153895.2198072,0.00011,2]
[335171900,1723930239140,-668.26362144,0.00011,2]
[335171902,1723930239151,-7991.34343518,0.00011,2]
[335171904,1723930239162,-32211.70718728,0.00011,2]
[335171906,1723930239173,-1849.01762945,0.00011,2]
[335171908,1723930239184,-4070.08297907,0.00011,2]
[335171911,1723930239194,-44074.76482685,0.00011,2]
[335171913,1723930239205,-795.0000001,0.00011,2]
[335171928,1723930239600,-3033.53018522,9.999e-05,2]
[335171929,1723930239610,-53540.53586025,0.00011,2]
[335171930,1723930239622,-15240.96322548,0.00011,2]
[335171931,1723930239632,-500.54994624,0.00011,2]
[335171932,1723930239664,-1283.79229546,0.00011,2]
[335171933,1723930239673,-500.0,0.00011,2]
[335171934,1723930239683,-10218.94057087,0.00011,2]
[335171935,1723930239785,-12137060.18925456,0.00011,2]
[335171936,1723930239795,-2085629.1386565,0.00011,2]
[335171937,1723930239806,-162124.24414294,0.00011,2]
[335171938,1723930239817,-1286.00183147,0.00011,2]
[335171939,1723930239827,-320448.73401059,0.00011,2]
[335171940,1723930239838,-2025807.44398464,0.00011,2]
[335171941,1723930239851,-11181.032,0.00011,2]
[335171942,1723930239863,-1546.49764756,0.00011,2]
[335171943,1723930239875,-16107.31564882,0.00011,2]
[335171944,1723930239968,-607.5499219,0.00011,2]
[335171954,1723930242692,-17072.074329,0.00011,2]
[335171956,1723930242703,-5066.20000016,0.00011,2]
[335171971,1723930243575,-832.28687525,0.00011,2]
[335171972,1723930243880,-9190.79350427,0.00011,2]
[335171973,1723930243891,-636.82035561,0.00011,2]
[335171974,1723930243907,-276.32554524,0.00011,2]
[335171975,1723930245733,-300.0,0.0001089,2]
[335171976,1723930245743,-914.0,0.00011,2]
[335171977,1723930245753,-13321.0,0.00011,2]
[335171978,1723930245801,-2117.85869427,0.00011,2]
[335171979,1723930245813,-253.52,0.00011,2]
[335171980,1723930245824,-5946.369,0.00011,2]
[335171987,1723930350973,300.0,9.9e-05,3]
[335171988,1723930387901,15877.882,9.909e-05,2]
[335171989,1723930441988,200.0,9.931e-05,2]
[335171991,1723930509270,175.74,9.928e-05,2]
[335171995,1723930671766,555.66,8.219e-05,2]
[335171996,1723930738925,14616.44549607,9.962e-05,2]
[335171999,1723930908001,840.0,9.903e-05,2]
[335172001,1723931091868,400.0,9.889e-05,2]
[335172002,1723931124481,1800.0,0.00014,30]
[335172009,1723931201387,6667.94,9.976e-05,2]
[335172010,1723931212413,150.0,9.888e-05,2]
[335172011,1723931223143,300.0,9.9e-05,3]
[335172020,1723931272975,20396.1727788,9.888e-05,2]
[335172021,1723931275695,562.25,8.219e-05,2]
[335172022,1723931283076,1269.15931583,9.888e-05,2]
[335172023,1723931287337,3071.43156646,9.888e-05,2]
[335172026,1723931360295,1268.70382787,9.888e-05,2]
[335172027,1723931367972,8365.95045922,9.888e-05,2]
[335172028,1723931374839,952.9218479,9.888e-05,2]
[335172029,1723931414793,328.0,9.765e-05,2]
[335172030,1723931422910,2787.93406055,9.943e-05,2]
[335172034,1723931431711,-300.0,9.999e-05,2]
[335172035,1723931431722,-241.0092199,0.0001,2]
[335172036,1723931431735,-567.14,0.0001,2]
[335172037,1723931431749,-1991.81902353,0.0001,2]
[335172038,1723931431760,-546.65829105,0.0001,3]
[335172039,1723931431773,-53.34170895,0.0001,3]
[335172040,1723931431783,-550.0,0.0001,2]
[335172041,1723931431794,-32.10114285,0.00010097,2]
[335172042,1723931431806,-930.7035117,0.00010097,2]
[335172043,1723931431816,-900.0,0.000101,3]
[335172044,1723931431827,-1300.0,0.000102,3]
[335172045,1723931431837,-1600.0,0.000103,3]
[335172046,1723931431847,-300.0,0.000104,3]
[335172047,1723931431858,-150.0,0.00010437,2]
[335172048,1723931431868,-150.0,0.00010466,2]
[335172049,1723931431879,-562.25,0.00010467,2]
[335172050,1723931431888,-155.0,0.00010471,2]
[335172051,1723931431898,-155.0,0.00010471,2]
[335172052,1723931431909,-150.0,0.00010478,2]
[335172053,1723931431919,-150.0,0.00010478,2]
[335172054,1723931431929,-150.0,0.00010478,2]
[335172055,1723931431940,-300.0,0.000105,3]
[335172056,1723931431953,-155.0,0.00010566,2]
[335172057,1723931431963,-300.0,0.000106,3]
[335172058,1723931431973,-150.0,0.00010699,2]
[335172059,1723931431983,-4913.7551,0.000107,2]
[335172060,1723931431993,-15167.9626968,0.000107,2]